[Event "Live Chess"]
[Site "Chess.com"]
[Date "2023.05.21"]
[Round "-"]
[White "jimwad"]
[Black "ranvir123"]
[Result "1-0"]
[WhiteElo "1218"]
[BlackElo "985"]
[TimeControl "300"]
[EndTime "8:05:25 PDT"]
[Termination "jimwad won by resignation"]

1. d4 {[%clk 0:04:56.7]} 1... e5 {[%clk 0:04:57.3]} 2. dxe5 {[%clk 0:04:55.3]}
2... Nc6 {[%clk 0:04:55.9]} 3. Nf3 {[%clk 0:04:53]} 3... Qe7 {[%clk 0:04:54.8]}
4. Bf4 {[%clk 0:04:47.6]} 4... Qb4+ {[%clk 0:04:53.5]} 5. Nc3 {[%clk 0:04:41.9]}
5... Qxf4 {[%clk 0:04:51.2]} 6. e3 {[%clk 0:04:39.5]} 6... Qh6 {[%clk 0:04:44]}
7. Bd3 {[%clk 0:04:35.3]} 7... f6 {[%clk 0:04:40.9]} 8. exf6 {[%clk 0:04:34]}
8... Nxf6 {[%clk 0:04:38.9]} 9. Qe2 {[%clk 0:04:16.9]} 9... Bb4 {[%clk
0:04:34.5]} 10. O-O {[%clk 0:04:07.1]} 10... O-O {[%clk 0:04:25]} 11. Ne4 {[%clk
0:04:03.5]} 11... Nxe4 {[%clk 0:04:18.6]} 12. Bxe4 {[%clk 0:04:02.1]} 12... Bd6
{[%clk 0:04:12.5]} 13. Bd5+ {[%clk 0:03:55.8]} 13... Kh8 {[%clk 0:04:05.5]} 14.
h3 {[%clk 0:03:44.4]} 14... Ne5 {[%clk 0:03:50.9]} 15. Nxe5 {[%clk 0:03:42.1]}
15... Bxe5 {[%clk 0:03:48.7]} 16. c3 {[%clk 0:03:38.9]} 16... d6 {[%clk
0:03:39.8]} 17. Rad1 {[%clk 0:03:15.7]} 17... Qg6 {[%clk 0:03:34.6]} 18. Kh1
{[%clk 0:03:05.7]} 18... c6 {[%clk 0:03:19.1]} 19. Bb3 {[%clk 0:03:00.4]} 19...
Bxh3 {[%clk 0:03:12]} 20. gxh3 {[%clk 0:02:56.9]} 20... Qe4+ {[%clk 0:03:08.9]}
21. f3 {[%clk 0:02:53.2]} 21... Qh4 {[%clk 0:03:01.9]} 22. f4 {[%clk 0:02:41.8]}
22... Qxh3+ {[%clk 0:02:53.7]} 23. Qh2 {[%clk 0:02:40.1]} 23... Qxh2+ {[%clk
0:02:44.3]} 24. Kxh2 {[%clk 0:02:39.1]} 1-0

[Event "Live Chess"]
[Site "Chess.com"]
[Date "2023.05.21"]
[Round "-"]
[White "defenderalist"]
[Black "AttackingSnowLeopard"]
[Result "0-1"]
[WhiteElo "1628"]
[BlackElo "2157"]
[TimeControl "300"]
[EndTime "8:05:34 PDT"]
[Termination "AttackingSnowLeopard won on time"]

1. e4 {[%clk 0:04:56.9]} 1... c6 {[%clk 0:04:58]} 2. Nf3 {[%clk 0:04:55.7]} 2...
d5 {[%clk 0:04:57.1]} 3. exd5 {[%clk 0:04:54.9]} 3... cxd5 {[%clk 0:04:56.2]} 4.
d4 {[%clk 0:04:54.8]} 4... Bg4 {[%clk 0:04:54.2]} 5. Be2 {[%clk 0:04:54.2]} 5...
Nf6 {[%clk 0:04:50.4]} 6. h3 {[%clk 0:04:53.5]} 6... Bxf3 {[%clk 0:04:49]} 7.
Bxf3 {[%clk 0:04:52.4]} 7... e6 {[%clk 0:04:48.7]} 8. c3 {[%clk 0:04:50.2]} 8...
Nc6 {[%clk 0:04:48]} 9. Bg5 {[%clk 0:04:48.1]} 9... Be7 {[%clk 0:04:47]} 10. Nd2
{[%clk 0:04:46.5]} 10... O-O {[%clk 0:04:45.3]} 11. O-O {[%clk 0:04:44.7]} 11...
h6 {[%clk 0:04:44.3]} 12. Bh4 {[%clk 0:04:43]} 12... Rb8 {[%clk 0:04:42.3]} 13.
Qc2 {[%clk 0:04:35.1]} 13... b5 {[%clk 0:04:41]} 14. Be2 {[%clk 0:04:25.7]}
14... b4 {[%clk 0:04:39.8]} 15. c4 {[%clk 0:04:23.8]} 15... Nxd4 {[%clk
0:04:38]} 16. Qd1 {[%clk 0:04:12.9]} 16... Nf5 {[%clk 0:04:36.4]} 17. Bg3 {[%clk
0:04:08.6]} 17... Nxg3 {[%clk 0:04:34.7]} 18. fxg3 {[%clk 0:04:07.7]} 18... Bc5+
{[%clk 0:04:28.4]} 19. Kh1 {[%clk 0:04:05.6]} 19... Qd6 {[%clk 0:04:27.6]} 20.
cxd5 {[%clk 0:04:03.6]} 20... Qxg3 {[%clk 0:04:20.4]} 21. dxe6 {[%clk
0:03:56.6]} 21... Bd6 {[%clk 0:04:15.8]} 22. Nf3 {[%clk 0:03:48.7]} 22... fxe6
{[%clk 0:04:14.5]} 23. Qe1 {[%clk 0:03:41.6]} 23... Qg6 {[%clk 0:04:08.4]} 24.
Bc4 {[%clk 0:03:31.7]} 24... Ne4 {[%clk 0:04:05.2]} 25. Kg1 {[%clk 0:03:08.9]}
25... Kh8 {[%clk 0:03:39.6]} 26. g4 {[%clk 0:03:00.6]} 26... Ng3 {[%clk
0:03:29.9]} 27. Qxe6 {[%clk 0:02:46.1]} 27... Qxe6 {[%clk 0:03:27]} 28. Bxe6
{[%clk 0:02:44.4]} 28... Nxf1 {[%clk 0:03:26.6]} 29. Rxf1 {[%clk 0:02:42.7]}
29... Rbe8 {[%clk 0:03:24.9]} 30. Bc4 {[%clk 0:02:35.8]} 30... Re3 {[%clk
0:03:20.1]} 31. Kg2 {[%clk 0:02:29.7]} 31... g5 {[%clk 0:03:15.1]} 32. b3 {[%clk
0:02:24.6]} 32... Kg7 {[%clk 0:03:07.8]} 33. Bd5 {[%clk 0:02:08.2]} 33... Re2+
{[%clk 0:02:59.3]} 34. Rf2 {[%clk 0:02:03.6]} 34... Rxf2+ {[%clk 0:02:58.2]} 35.
Kxf2 {[%clk 0:02:03]} 35... Rc8 {[%clk 0:02:56.2]} 36. Bc4 {[%clk 0:02:01.8]}
36... Bc5+ {[%clk 0:02:53.6]} 37. Ke2 {[%clk 0:01:58.1]} 37... Re8+ {[%clk
0:02:52.2]} 38. Kd2 {[%clk 0:01:52.5]} 38... Re3 {[%clk 0:02:49.5]} 39. Ng1
{[%clk 0:01:42.1]} 39... Rg3 {[%clk 0:02:33.4]} 40. Ne2 {[%clk 0:01:38.2]} 40...
Rxh3 {[%clk 0:02:32.5]} 41. Nc1 {[%clk 0:01:27.9]} 41... Rh2+ {[%clk 0:02:30.9]}
42. Kd3 {[%clk 0:01:19.2]} 42... Rh3+ {[%clk 0:02:28.2]} 43. Ke4 {[%clk
0:01:16.5]} 43... Rg3 {[%clk 0:02:22.7]} 44. Kf5 {[%clk 0:01:15.1]} 44... Rf3+
{[%clk 0:02:20.4]} 45. Ke6 {[%clk 0:01:09.9]} 45... Rf4 {[%clk 0:02:15.4]} 46.
Nd3 {[%clk 0:01:06.3]} 46... Rf6+ {[%clk 0:02:09.6]} 47. Kd5 {[%clk 0:00:53.8]}
47... Bf8 {[%clk 0:02:08.4]} 48. Ne5 {[%clk 0:00:46.8]} 48... Rd6+ {[%clk
0:02:02.5]} 49. Ke4 {[%clk 0:00:45.3]} 49... a5 {[%clk 0:01:58.6]} 50. Nf3
{[%clk 0:00:39.9]} 50... Rd1 {[%clk 0:01:55.7]} 51. Ne5 {[%clk 0:00:37.8]} 51...
Ra1 {[%clk 0:01:54.1]} 52. Kf5 {[%clk 0:00:36.3]} 52... Rxa2 {[%clk 0:01:48.8]}
53. Nc6 {[%clk 0:00:31.2]} 53... Rf2+ {[%clk 0:01:44.7]} 54. Ke6 {[%clk
0:00:29.9]} 54... Rf6+ {[%clk 0:01:34.7]} 55. Kd7 {[%clk 0:00:28.8]} 55... Rd6+
{[%clk 0:01:33.5]} 56. Kc7 {[%clk 0:00:26.9]} 56... Rd4 {[%clk 0:01:32.7]} 57.
Nxa5 {[%clk 0:00:25.6]} 57... Rxg4 {[%clk 0:01:32.2]} 58. Nc6 {[%clk 0:00:23.6]}
58... Rxc4 {[%clk 0:01:29.1]} 59. bxc4 {[%clk 0:00:22.3]} 59... b3 {[%clk
0:01:28.8]} 60. Nd4 {[%clk 0:00:21.3]} 60... b2 {[%clk 0:01:27.6]} 0-1

[Event "Live Chess"]
[Site "Chess.com"]
[Date "2023.05.21"]
[Round "-"]
[White "NatashaRegan"]
[Black "garyjc"]
[Result "1-0"]
[WhiteElo "1710"]
[BlackElo "1079"]
[TimeControl "300"]
[EndTime "8:05:41 PDT"]
[Termination "NatashaRegan won by resignation"]

1. Nf3 {[%clk 0:04:45.8]} 1... g6 {[%clk 0:04:46]} 2. d4 {[%clk 0:04:43.2]} 2...
Nf6 {[%clk 0:04:44.5]} 3. Nc3 {[%clk 0:04:37]} 3... Bg7 {[%clk 0:04:43.5]} 4. e4
{[%clk 0:04:34.9]} 4... O-O {[%clk 0:04:41.7]} 5. e5 {[%clk 0:04:31.9]} 5... Ne8
{[%clk 0:04:36.7]} 6. Bc4 {[%clk 0:04:23.5]} 6... d6 {[%clk 0:04:34.8]} 7. O-O
{[%clk 0:04:17.9]} 7... b6 {[%clk 0:04:20.1]} 8. Qe2 {[%clk 0:04:02]} 8... Bb7
{[%clk 0:04:17.9]} 9. Ng5 {[%clk 0:03:52.6]} 9... e6 {[%clk 0:04:03.5]} 10. Bxe6
{[%clk 0:03:42.9]} 10... Bc8 {[%clk 0:03:43.9]} 11. Bd5 {[%clk 0:03:34.7]} 11...
c6 {[%clk 0:03:29.7]} 12. Bxf7+ {[%clk 0:03:15.1]} 12... Rxf7 {[%clk 0:03:26.8]}
13. Nxf7 {[%clk 0:03:07.5]} 13... Kxf7 {[%clk 0:03:24.5]} 14. Ne4 {[%clk
0:02:57.9]} 14... dxe5 {[%clk 0:03:04.6]} 15. Ng5+ {[%clk 0:02:51.4]} 15... Kg8
{[%clk 0:03:01.3]} 16. dxe5 {[%clk 0:02:49.4]} 16... Bf5 {[%clk 0:02:49.5]} 17.
Bf4 {[%clk 0:02:42.3]} 17... Nd7 {[%clk 0:02:40.3]} 18. Qc4+ {[%clk 0:02:38.5]}
1-0

[Event "Live Chess"]
[Site "Chess.com"]
[Date "2023.05.21"]
[Round "-"]
[White "JohanKjeldahl"]
[Black "LL220284LL"]
[Result "0-1"]
[WhiteElo "1889"]
[BlackElo "2233"]
[TimeControl "300"]
[EndTime "8:05:44 PDT"]
[Termination "LL220284LL won by resignation"]

1. c4 {[%clk 0:04:57.4]} 1... e6 {[%clk 0:04:58.6]} 2. Nc3 {[%clk 0:04:56.1]}
2... d5 {[%clk 0:04:58.1]} 3. d4 {[%clk 0:04:55.1]} 3... Nf6 {[%clk 0:04:56.4]}
4. Nf3 {[%clk 0:04:53.4]} 4... a6 {[%clk 0:04:55.9]} 5. e3 {[%clk 0:04:52.4]}
5... dxc4 {[%clk 0:04:52]} 6. Bxc4 {[%clk 0:04:51.2]} 6... b5 {[%clk 0:04:51.6]}
7. Bd3 {[%clk 0:04:50]} 7... Bb7 {[%clk 0:04:50.9]} 8. O-O {[%clk 0:04:47.4]}
8... Nbd7 {[%clk 0:04:50.5]} 9. a3 {[%clk 0:04:44.7]} 9... c5 {[%clk 0:04:49.7]}
10. dxc5 {[%clk 0:04:40.3]} 10... Bxc5 {[%clk 0:04:49.6]} 11. Be2 {[%clk
0:04:36.9]} 11... O-O {[%clk 0:04:48.7]} 12. b4 {[%clk 0:04:35.9]} 12... Bb6
{[%clk 0:04:47.1]} 13. Bb2 {[%clk 0:04:34.7]} 13... Rc8 {[%clk 0:04:46.4]} 14.
Rc1 {[%clk 0:04:32.4]} 14... Qe7 {[%clk 0:04:45.6]} 15. Nd4 {[%clk 0:04:25.6]}
15... Rfd8 {[%clk 0:04:44.5]} 16. Bf3 {[%clk 0:04:19.5]} 16... Bxf3 {[%clk
0:04:43.4]} 17. Nxf3 {[%clk 0:04:15.4]} 17... Ne5 {[%clk 0:04:41.6]} 18. Qe2
{[%clk 0:04:13.7]} 18... Nc4 {[%clk 0:04:40.3]} 19. Rfd1 {[%clk 0:03:57.7]}
19... h6 {[%clk 0:04:37.8]} 20. h3 {[%clk 0:03:50.9]} 20... Ne8 {[%clk
0:04:33.5]} 21. Rxd8 {[%clk 0:03:41.1]} 21... Rxd8 {[%clk 0:04:31.5]} 22. Ne4
{[%clk 0:03:38.9]} 22... Ned6 {[%clk 0:04:27.8]} 23. Nxd6 {[%clk 0:03:35.4]}
23... Rxd6 {[%clk 0:04:25.7]} 24. Nd4 {[%clk 0:03:23.6]} 24... Qd7 {[%clk
0:04:23.7]} 25. Nb3 {[%clk 0:02:51.3]} 25... Qb7 {[%clk 0:04:11.4]} 26. Ra1
{[%clk 0:02:38.3]} 26... Qe4 {[%clk 0:04:07.1]} 27. Bd4 {[%clk 0:02:27.3]} 27...
Bxd4 {[%clk 0:04:04.9]} 28. Nxd4 {[%clk 0:02:23.4]} 28... Rxd4 {[%clk
0:04:02.8]} 0-1

[Event "Live Chess"]
[Site "Chess.com"]
[Date "2023.05.21"]
[Round "-"]
[White "diana21strabt"]
[Black "CheckThis4"]
[Result "0-1"]
[WhiteElo "1735"]
[BlackElo "2530"]
[TimeControl "300"]
[EndTime "8:05:52 PDT"]
[Termination "CheckThis4 won by resignation"]

1. e4 {[%clk 0:04:57.7]} 1... d5 {[%clk 0:04:58.6]} 2. exd5 {[%clk 0:04:56.4]}
2... Nf6 {[%clk 0:04:58.1]} 3. Nc3 {[%clk 0:04:55.1]} 3... c6 {[%clk 0:04:55.5]}
4. dxc6 {[%clk 0:04:53.9]} 4... Nxc6 {[%clk 0:04:55.4]} 5. Bb5 {[%clk
0:04:51.9]} 5... e5 {[%clk 0:04:53.1]} 6. Nf3 {[%clk 0:04:46.1]} 6... Bg4 {[%clk
0:04:51.5]} 7. Bxc6+ {[%clk 0:04:44.6]} 7... bxc6 {[%clk 0:04:50.1]} 8. h3
{[%clk 0:04:43.6]} 8... Bh5 {[%clk 0:04:48.9]} 9. g4 {[%clk 0:04:42]} 9... Bg6
{[%clk 0:04:45.8]} 10. Nxe5 {[%clk 0:04:40.5]} 10... Bd6 {[%clk 0:04:44.7]} 11.
Nxc6 {[%clk 0:04:28.5]} 11... Qc7 {[%clk 0:04:42.3]} 12. Qe2+ {[%clk 0:04:26.2]}
12... Kf8 {[%clk 0:04:40.9]} 13. Nd4 {[%clk 0:04:14.9]} 13... Re8 {[%clk
0:04:37.7]} 14. Qxe8+ {[%clk 0:04:06.8]} 14... Kxe8 {[%clk 0:04:36.2]} 15. d3
{[%clk 0:04:05.4]} 15... h5 {[%clk 0:04:22.1]} 16. gxh5 {[%clk 0:04:02.1]} 16...
Rxh5 {[%clk 0:04:19.8]} 17. Ndb5 {[%clk 0:03:58.4]} 17... Rxb5 {[%clk
0:04:03.1]} 18. Nxb5 {[%clk 0:03:56.5]} 18... Bb4+ {[%clk 0:04:01.4]} 19. Bd2
{[%clk 0:03:39.2]} 19... Qc6 {[%clk 0:03:58.6]} 20. Nc7+ {[%clk 0:03:22.2]}
20... Kd7 {[%clk 0:03:51.2]} 21. O-O-O {[%clk 0:03:15.4]} 21... Bxd2+ {[%clk
0:03:47.7]} 22. Rxd2 {[%clk 0:03:12.9]} 22... Qxh1+ {[%clk 0:03:45.3]} 23. Rd1
{[%clk 0:03:11.8]} 23... Qc6 {[%clk 0:03:40.5]} 0-1

[Event "Live Chess"]
[Site "Chess.com"]
[Date "2023.05.21"]
[Round "-"]
[White "Shepherds_Pie"]
[Black "wadsy27"]
[Result "0-1"]
[WhiteElo "1937"]
[BlackElo "2539"]
[TimeControl "300"]
[EndTime "8:06:07 PDT"]
[Termination "wadsy27 won by checkmate"]

1. c4 {[%clk 0:04:52]} 1... c6 {[%clk 0:04:57.2]} 2. Nf3 {[%clk 0:04:50.4]} 2...
d5 {[%clk 0:04:51.2]} 3. g3 {[%clk 0:04:48.4]} 3... Nf6 {[%clk 0:04:50.4]} 4.
Bg2 {[%clk 0:04:47.3]} 4... dxc4 {[%clk 0:04:49.7]} 5. O-O {[%clk 0:04:45.8]}
5... Nbd7 {[%clk 0:04:49]} 6. a4 {[%clk 0:04:44]} 6... Nc5 {[%clk 0:04:45.9]} 7.
Na3 {[%clk 0:04:42.6]} 7... Nb3 {[%clk 0:04:44.4]} 8. Rb1 {[%clk 0:04:41.5]}
8... Be6 {[%clk 0:04:24.5]} 9. Qc2 {[%clk 0:04:27.4]} 9... g6 {[%clk 0:04:16.1]}
10. Nxc4 {[%clk 0:04:24.2]} 10... Nd4 {[%clk 0:04:13.3]} 11. Nxd4 {[%clk
0:04:22]} 11... Qxd4 {[%clk 0:04:13.2]} 12. b3 {[%clk 0:04:12.2]} 12... Bg7
{[%clk 0:04:07.9]} 13. Bb2 {[%clk 0:04:09.8]} 13... Qd8 {[%clk 0:04:06.2]} 14.
Ne5 {[%clk 0:04:03.6]} 14... O-O {[%clk 0:04:04.8]} 15. d3 {[%clk 0:03:58.4]}
15... a5 {[%clk 0:04:03.1]} 16. Rfc1 {[%clk 0:03:49.5]} 16... Nd5 {[%clk
0:04:01.2]} 17. Qd2 {[%clk 0:03:42.6]} 17... Nb4 {[%clk 0:04:00.1]} 18. Ba1
{[%clk 0:03:32]} 18... Qc7 {[%clk 0:03:40.6]} 19. Nc4 {[%clk 0:03:28.5]} 19...
Bxa1 {[%clk 0:03:34]} 20. Rxa1 {[%clk 0:03:27.2]} 20... Rad8 {[%clk 0:03:31.8]}
21. Qh6 {[%clk 0:03:21.3]} 21... Rd5 {[%clk 0:03:19.7]} 22. Bxd5 {[%clk
0:03:06]} 22... cxd5 {[%clk 0:03:12.2]} 23. Ne3 {[%clk 0:03:02.7]} 23... Qb6
{[%clk 0:03:06.8]} 24. h4 {[%clk 0:02:57.5]} 24... Nc6 {[%clk 0:03:03.6]} 25. h5
{[%clk 0:02:54.8]} 25... Nd4 {[%clk 0:03:01.6]} 26. Ra2 {[%clk 0:02:44.7]} 26...
Qxb3 {[%clk 0:02:55.3]} 27. Rca1 {[%clk 0:02:37.3]} 27... Nc6 {[%clk 0:02:09.8]}
28. Kg2 {[%clk 0:02:30.4]} 28... d4 {[%clk 0:02:08]} 29. Nc4 {[%clk 0:02:29.2]}
29... Bxc4 {[%clk 0:02:01.7]} 30. dxc4 {[%clk 0:02:27.8]} 30... Qxc4 {[%clk
0:02:01.3]} 31. Ra3 {[%clk 0:02:20.6]} 31... Qd5+ {[%clk 0:01:59.4]} 32. f3
{[%clk 0:02:19]} 32... Ne5 {[%clk 0:01:54.7]} 33. Qg5 {[%clk 0:02:14.2]} 33...
f6 {[%clk 0:01:47.9]} 34. Qd2 {[%clk 0:02:08]} 34... Nc4 {[%clk 0:01:46]} 35.
Qa2 {[%clk 0:02:06.6]} 35... Rc8 {[%clk 0:01:35.6]} 36. hxg6 {[%clk 0:01:59.9]}
36... hxg6 {[%clk 0:01:30.3]} 37. Rc1 {[%clk 0:01:56.5]} 37... Ne3+ {[%clk
0:01:26.9]} 38. Kf2 {[%clk 0:01:55.2]} 38... Rxc1 {[%clk 0:01:23]} 39. Qd2
{[%clk 0:01:49.4]} 39... Rf1# {[%clk 0:01:21]} 0-1

[Event "Live Chess"]
[Site "Chess.com"]
[Date "2023.05.21"]
[Round "-"]
[White "LaupMiths"]
[Black "wot-not"]
[Result "1-0"]
[WhiteElo "1820"]
[BlackElo "1521"]
[TimeControl "300"]
[EndTime "8:06:09 PDT"]
[Termination "LaupMiths won by resignation"]

1. d4 {[%clk 0:04:56.6]} 1... e6 {[%clk 0:04:58.4]} 2. c4 {[%clk 0:04:54.9]}
2... d5 {[%clk 0:04:56.6]} 3. Nc3 {[%clk 0:04:53]} 3... dxc4 {[%clk 0:04:51.1]}
4. e4 {[%clk 0:04:51.3]} 4... Bb4 {[%clk 0:04:48.3]} 5. Bxc4 {[%clk 0:04:48.9]}
5... Bxc3+ {[%clk 0:04:47.3]} 6. bxc3 {[%clk 0:04:47.4]} 6... Ne7 {[%clk
0:04:46.9]} 7. Nf3 {[%clk 0:04:45.2]} 7... O-O {[%clk 0:04:45.8]} 8. O-O {[%clk
0:04:43.7]} 8... Nd7 {[%clk 0:04:45.2]} 9. e5 {[%clk 0:04:42.1]} 9... Nb6 {[%clk
0:04:42.8]} 10. Bd3 {[%clk 0:04:40.9]} 10... Ng6 {[%clk 0:04:40.2]} 11. h4
{[%clk 0:04:38.9]} 11... Bd7 {[%clk 0:04:29.3]} 12. h5 {[%clk 0:04:37.1]} 12...
Nh8 {[%clk 0:04:27.2]} 13. Bc2 {[%clk 0:04:31.1]} 13... f6 {[%clk 0:04:26.3]}
14. exf6 {[%clk 0:04:27.2]} 14... Qxf6 {[%clk 0:04:20.4]} 15. Bg5 {[%clk
0:04:20.2]} 15... Qf7 {[%clk 0:04:15.6]} 16. h6 {[%clk 0:04:16.2]} 16... Ng6
{[%clk 0:04:06.4]} 17. Qd3 {[%clk 0:03:55.7]} 17... Qf5 {[%clk 0:03:22.3]} 18.
Qe2 {[%clk 0:03:49.8]} 18... Qg4 {[%clk 0:03:18.3]} 19. Bd2 {[%clk 0:03:12.2]}
19... Bc6 {[%clk 0:03:12.9]} 20. hxg7 {[%clk 0:02:53.8]} 20... Rxf3 {[%clk
0:03:05.2]} 21. Bb3 {[%clk 0:02:43.6]} 21... Nf4 {[%clk 0:02:48]} 22. Bxf4
{[%clk 0:02:40.3]} 22... Rxf4 {[%clk 0:02:46.8]} 23. Bxe6+ {[%clk 0:02:38.2]}
23... Kxg7 {[%clk 0:02:45.2]} 24. Bxg4 {[%clk 0:02:37.2]} 1-0

[Event "Live Chess"]
[Site "Chess.com"]
[Date "2023.05.21"]
[Round "-"]
[White "davigator"]
[Black "WelshTiger"]
[Result "1-0"]
[WhiteElo "2302"]
[BlackElo "2334"]
[TimeControl "300"]
[EndTime "8:06:32 PDT"]
[Termination "davigator won by resignation"]

1. e4 {[%clk 0:04:57.3]} 1... c5 {[%clk 0:04:58.8]} 2. Nf3 {[%clk 0:04:56.4]}
2... d6 {[%clk 0:04:58.3]} 3. d4 {[%clk 0:04:56]} 3... cxd4 {[%clk 0:04:57.8]}
4. Nxd4 {[%clk 0:04:55.7]} 4... Nf6 {[%clk 0:04:57.5]} 5. Nc3 {[%clk 0:04:53.9]}
5... Nc6 {[%clk 0:04:57.1]} 6. Bg5 {[%clk 0:04:52.2]} 6... Bd7 {[%clk
0:04:55.8]} 7. Nb3 {[%clk 0:04:49.9]} 7... e6 {[%clk 0:04:52.7]} 8. f3 {[%clk
0:04:48.3]} 8... Be7 {[%clk 0:04:51.2]} 9. Qd2 {[%clk 0:04:47]} 9... a5 {[%clk
0:04:49.9]} 10. a4 {[%clk 0:04:44.6]} 10... Nb4 {[%clk 0:04:48.4]} 11. h4 {[%clk
0:04:41]} 11... d5 {[%clk 0:04:45.3]} 12. e5 {[%clk 0:04:37.9]} 12... Ng8 {[%clk
0:04:42.4]} 13. Bxe7 {[%clk 0:04:34.2]} 13... Nxe7 {[%clk 0:04:41.3]} 14. Bb5
{[%clk 0:04:30.3]} 14... Rc8 {[%clk 0:04:40]} 15. Bxd7+ {[%clk 0:04:24.2]} 15...
Qxd7 {[%clk 0:04:38.7]} 16. Rc1 {[%clk 0:04:23]} 16... Qc7 {[%clk 0:04:25.7]}
17. f4 {[%clk 0:04:20.7]} 17... Qb6 {[%clk 0:04:24]} 18. Nb5 {[%clk 0:04:18.1]}
18... O-O {[%clk 0:04:17.8]} 19. c3 {[%clk 0:04:12.9]} 19... Nbc6 {[%clk
0:04:09.1]} 20. Ke2 {[%clk 0:03:51.1]} 20... Na7 {[%clk 0:04:07.9]} 21. N3d4
{[%clk 0:03:46.5]} 21... Nxb5 {[%clk 0:04:06.1]} 22. axb5 {[%clk 0:03:44.8]}
22... f6 {[%clk 0:03:46.4]} 23. exf6 {[%clk 0:03:42.8]} 23... Rxf6 {[%clk
0:03:45.1]} 24. g3 {[%clk 0:03:41.6]} 24... Nf5 {[%clk 0:03:44]} 25. Qd3 {[%clk
0:03:36.9]} 25... Nd6 {[%clk 0:03:35.6]} 26. Rhe1 {[%clk 0:03:27.7]} 26... Ne4
{[%clk 0:03:34.6]} 27. Kf3 {[%clk 0:03:25.5]} 27... Rcf8 {[%clk 0:03:23.5]} 28.
Rxe4 {[%clk 0:03:21.7]} 28... dxe4+ {[%clk 0:03:22.9]} 29. Qxe4 {[%clk
0:03:21.3]} 29... Qd6 {[%clk 0:03:04.8]} 30. Ke3 {[%clk 0:03:03.1]} 30... Re8
{[%clk 0:02:57.2]} 31. Kd3 {[%clk 0:02:57.2]} 31... b6 {[%clk 0:02:47.4]} 32.
Re1 {[%clk 0:02:54.1]} 32... Rg6 {[%clk 0:02:38.3]} 33. Re3 {[%clk 0:02:52.3]}
33... Qc5 {[%clk 0:02:34.8]} 34. Qc6 {[%clk 0:02:50.1]} 34... Rc8 {[%clk
0:02:19.8]} 35. Qxc5 {[%clk 0:02:43.6]} 35... Rxc5 {[%clk 0:02:19.7]} 36. c4
{[%clk 0:02:40.5]} 36... Kf7 {[%clk 0:02:16.9]} 37. b3 {[%clk 0:02:38.4]} 37...
Rc8 {[%clk 0:02:15]} 38. Nc6 {[%clk 0:02:36.5]} 38... Rf6 {[%clk 0:02:09.6]} 39.
Ne5+ {[%clk 0:02:34.6]} 39... Ke7 {[%clk 0:02:09]} 40. Kc3 {[%clk 0:02:31.6]}
40... Rc7 {[%clk 0:02:02.9]} 41. b4 {[%clk 0:02:28.1]} 41... axb4+ {[%clk
0:02:01.7]} 42. Kxb4 {[%clk 0:02:27.2]} 42... h6 {[%clk 0:02:00.9]} 43. Nc6+
{[%clk 0:02:16.1]} 43... Ke8 {[%clk 0:01:54.9]} 44. h5 {[%clk 0:02:09.6]} 44...
Kf7 {[%clk 0:01:50.4]} 45. Ne5+ {[%clk 0:02:06.2]} 45... Ke7 {[%clk 0:01:47.7]}
46. Nc6+ {[%clk 0:01:53.1]} 46... Kf8 {[%clk 0:01:44.7]} 47. Ra3 {[%clk
0:01:46.9]} 47... Rf5 {[%clk 0:01:35.1]} 48. Ra8+ {[%clk 0:01:45.4]} 48... Kf7
{[%clk 0:01:33.3]} 49. Ne5+ {[%clk 0:01:43.4]} 49... Ke7 {[%clk 0:01:31.2]} 50.
g4 {[%clk 0:01:39]} 50... Rxe5 {[%clk 0:01:25.9]} 51. fxe5 {[%clk 0:01:37.9]}
51... Rc5 {[%clk 0:01:24]} 52. Ra6 {[%clk 0:01:29.3]} 52... Rxe5 {[%clk
0:01:22.1]} 53. Rxb6 {[%clk 0:01:28.9]} 53... Re4 {[%clk 0:01:21.1]} 54. Rb7+
{[%clk 0:01:27.2]} 54... Kf6 {[%clk 0:01:19.7]} 55. Rc7 {[%clk 0:01:25.9]} 55...
Rxg4 {[%clk 0:01:18.5]} 56. b6 {[%clk 0:01:25.5]} 56... Rg1 {[%clk 0:01:17.2]}
57. b7 {[%clk 0:01:25.1]} 57... Rb1+ {[%clk 0:01:16.4]} 58. Kc5 {[%clk
0:01:24.4]} 58... Ke5 {[%clk 0:01:15.8]} 59. Kc6 {[%clk 0:01:22.8]} 59... Kd4
{[%clk 0:01:14.3]} 60. Rxg7 {[%clk 0:01:19.7]} 60... Kxc4 {[%clk 0:01:09.7]} 61.
Kc7 {[%clk 0:01:18.4]} 61... e5 {[%clk 0:01:08.5]} 62. Rg6 {[%clk 0:01:17]}
62... e4 {[%clk 0:01:07.3]} 63. Rxh6 {[%clk 0:01:15.8]} 63... e3 {[%clk
0:01:05.8]} 64. Re6 {[%clk 0:01:14.8]} 64... Kd3 {[%clk 0:01:01.7]} 65. b8=Q
{[%clk 0:01:13.5]} 65... Rxb8 {[%clk 0:00:59.4]} 66. Kxb8 {[%clk 0:01:13.1]} 1-0

[Event "Live Chess"]
[Site "Chess.com"]
[Date "2023.05.21"]
[Round "-"]
[White "HonestJoe1"]
[Black "WilliamofOrange16th"]
[Result "1-0"]
[WhiteElo "2097"]
[BlackElo "1852"]
[TimeControl "300"]
[EndTime "8:06:36 PDT"]
[Termination "HonestJoe1 won by checkmate"]

1. d4 {[%clk 0:04:59.1]} 1... d5 {[%clk 0:04:57.6]} 2. Nf3 {[%clk 0:04:57.8]}
2... Nf6 {[%clk 0:04:56.1]} 3. c4 {[%clk 0:04:56.4]} 3... c6 {[%clk 0:04:55.2]}
4. g3 {[%clk 0:04:55.2]} 4... a6 {[%clk 0:04:53.4]} 5. Bg2 {[%clk 0:04:53.5]}
5... dxc4 {[%clk 0:04:52.1]} 6. O-O {[%clk 0:04:49.4]} 6... Bf5 {[%clk
0:04:50.3]} 7. Ne5 {[%clk 0:04:43.8]} 7... e6 {[%clk 0:04:47.1]} 8. Nxc4 {[%clk
0:04:40]} 8... Be7 {[%clk 0:04:41.4]} 9. Nc3 {[%clk 0:04:38.8]} 9... O-O {[%clk
0:04:40.4]} 10. e4 {[%clk 0:04:37.5]} 10... Bg6 {[%clk 0:04:39.3]} 11. Bf4
{[%clk 0:04:25]} 11... b5 {[%clk 0:04:37.4]} 12. Ne5 {[%clk 0:04:22.7]} 12... c5
{[%clk 0:04:28.1]} 13. Nxg6 {[%clk 0:04:15.9]} 13... hxg6 {[%clk 0:04:28]} 14.
dxc5 {[%clk 0:04:11.1]} 14... Bxc5 {[%clk 0:04:17.4]} 15. e5 {[%clk 0:04:07.1]}
15... Nd5 {[%clk 0:04:16.5]} 16. Nxd5 {[%clk 0:04:04]} 16... exd5 {[%clk
0:04:15.8]} 17. Bxd5 {[%clk 0:03:56.6]} 17... Ra7 {[%clk 0:04:15]} 18. e6 {[%clk
0:03:53.6]} 18... fxe6 {[%clk 0:03:59.5]} 19. Bxe6+ {[%clk 0:03:52]} 19... Kh7
{[%clk 0:03:58.9]} 20. Qg4 {[%clk 0:03:37.1]} 20... g5 {[%clk 0:03:52.3]} 21.
Bxg5 {[%clk 0:03:28.3]} 21... Qd4 {[%clk 0:03:48.3]} 22. Qh5# {[%clk 0:03:23.3]}
1-0